fUSD/lending_fUSD_20240515
["ID","MTS","AMOUNT","RATE_DAILY","PERIOD"]
[327045721,1715734243711,-1770.34273093,0.00012999,2]
[327045722,1715734243720,-571.53,0.00012999,2]
[327045723,1715734243731,-571.53,0.00012999,2]
[327045724,1715734243740,-571.53,0.00012999,2]
[327045725,1715734243750,-571.53,0.00012999,2]
[327045726,1715734243760,-571.53,0.00012999,2]
[327045727,1715734243770,-571.53,0.00012999,2]
[327045728,1715734243779,-571.53,0.00012999,2]
[327045729,1715734243789,-571.53,0.00012999,2]
[327045730,1715734243798,-571.53,0.00012999,2]
[327045731,1715734243807,-571.53,0.00012999,2]
[327045732,1715734243817,-571.53,0.00012999,2]
[327045733,1715734243826,-571.53,0.00012999,2]
[327045734,1715734243835,-571.53,0.00012999,2]
[327045735,1715734243844,-571.53,0.00012999,2]
[327045736,1715734243854,-571.53,0.00012999,2]
[327045737,1715734243863,-571.53,0.00012999,2]
[327045739,1715734243872,-571.53,0.00012999,2]
[327045740,1715734243882,-571.53,0.00012999,2]
[327045741,1715734243891,-571.53,0.00012999,2]
[327045742,1715734243902,-571.53,0.00012999,2]
[327045743,1715734243911,-571.53,0.00012999,2]
[327045744,1715734243920,-571.53,0.00012999,2]
[327045745,1715734243930,-571.68902533,0.00012999,2]
[327045746,1715734243939,-500.0,0.00012999,2]
[327045747,1715734243949,-500.0,0.00012999,2]
[327045748,1715734243958,-500.0,0.00012999,2]
[327045749,1715734243967,-501.92809598,0.00012999,2]
[327045750,1715734243976,-824.51,0.00012999,2]
[327045751,1715734243985,-824.51,0.00012999,2]
[327045752,1715734243995,-824.51,0.00012999,2]
[327045753,1715734244004,-824.51,0.00012999,2]
[327045754,1715734244015,-824.51,0.00012999,2]
[327045755,1715734244024,-824.51,0.00012999,2]
[327045756,1715734244034,-824.51,0.00012999,2]
[327045757,1715734244043,-824.51,0.00012999,2]
[327045758,1715734244053,-824.51,0.00012999,2]
[327045759,1715734244062,-824.51,0.00012999,2]
[327045760,1715734244072,-824.51,0.00012999,2]
[327045761,1715734244081,-824.51,0.00012999,2]
[327045762,1715734244091,-824.51,0.00012999,2]
[327045763,1715734244101,-824.51,0.00012999,2]
[327045764,1715734244111,-824.51,0.00012999,2]
[327045765,1715734244120,-824.51,0.00012999,2]
[327045766,1715734244129,-824.51,0.00012999,2]
[327045767,1715734244139,-824.51,0.00012999,2]
[327045768,1715734244149,-824.51,0.00012999,2]
[327045769,1715734244158,-824.51,0.00012999,2]
[327045770,1715734244167,-824.51,0.00012999,2]
[327045771,1715734244176,-824.51,0.00012999,2]
[327045772,1715734244185,-824.6914731,0.00012999,2]
[327045773,1715734244194,-500.0,0.00012999,2]
[327045774,1715734244204,-500.0,0.00012999,2]
[327045775,1715734244213,-531.63224633,0.00012999,2]
[327045776,1715734244222,-351.03920366,0.00012999,2]
[327045777,1715734244233,-500.0,0.00012999,2]
[327045778,1715734244242,-500.0,0.00012999,2]
[327045779,1715734244252,-500.0,0.00012999,2]
[327045780,1715734244261,-500.0,0.00012999,2]
[327045781,1715734244271,-500.0,0.00012999,2]
[327045782,1715734244280,-500.0,0.00012999,2]
[327045783,1715734244289,-500.0,0.00012999,2]
[327045784,1715734244298,-500.0,0.00012999,2]
[327045785,1715734244307,-500.0,0.00012999,2]
[327045786,1715734244316,-500.0,0.00012999,2]
[327045787,1715734244325,-500.0,0.00012999,2]
[327045788,1715734244334,-500.0,0.00012999,2]
[327045789,1715734244343,-500.0,0.00012999,2]
[327045790,1715734244352,-500.0,0.00012999,2]
[327045791,1715734244361,-500.0,0.00012999,2]
[327045792,1715734244370,-500.0,0.00012999,2]
[327045793,1715734244379,-500.0,0.00012999,2]
[327045794,1715734244388,-500.0,0.00012999,2]
[327045795,1715734244397,-500.0,0.00012999,2]
[327045796,1715734244407,-500.0,0.00012999,2]
[327045797,1715734244416,-597.68815846,0.00012999,2]
[327045798,1715734244425,-500.0,0.00012999,2]
[327045799,1715734244434,-500.0,0.00012999,2]
[327045800,1715734244444,-500.0,0.00012999,2]
[327045801,1715734244453,-500.0,0.00012999,2]
[327045802,1715734244462,-500.0,0.00012999,2]
[327045803,1715734244472,-500.0,0.00012999,2]
[327045804,1715734244481,-500.0,0.00012999,2]
[327045805,1715734244490,-500.0,0.00012999,2]
[327045806,1715734244500,-500.0,0.00012999,2]
[327045807,1715734244509,-500.0,0.00012999,2]
[327045808,1715734244520,-500.0,0.00012999,2]
[327045809,1715734244533,-327.3694424,0.00012999,2]
[327045810,1715734244543,-500.0,0.00012999,2]
[327045811,1715734244552,-500.0,0.00012999,2]
[327045812,1715734244561,-500.0,0.00012999,2]
[327045813,1715734244573,-500.0,0.00012999,2]
[327045814,1715734244583,-500.0,0.00012999,2]
[327045815,1715734244592,-500.0,0.00012999,2]
[327045816,1715734244606,-500.0,0.00012999,2]
[327045817,1715734244618,-500.0,0.00012999,2]
[327045818,1715734244628,-500.0,0.00012999,2]
[327045819,1715734244637,-546.21384569,0.00012999,2]
[327045820,1715734244647,-694.44,0.00012999,2]
[327045821,1715734244656,-694.44,0.00012999,2]
[327045822,1715734244666,-694.44,0.00012999,2]
[327045823,1715734244675,-284713.46909338,0.00013,2]
[327045824,1715734244684,-3721311.22672592,0.00013,2]
[327045825,1715734244693,-405831.62885844,0.00013,2]
[327045826,1715734244703,-475839.1571678,0.00013,2]
[327045827,1715734244715,-2013.4999997,0.00013,2]
[327045828,1715734244727,-104423.01763815,0.00013,2]
[327045829,1715734244736,-18922.62248469,0.00013,2]
[327045830,1715734244751,-526.83208673,0.00013,2]
[327045831,1715734244763,-728.43402975,0.00013,2]
[327045832,1715734244776,-328.04999985,0.00013,2]
[327045833,1715734244892,-792.16022245,0.00013,2]
[327045834,1715734244906,-2069.32448801,0.00013,2]
[327045835,1715734244927,-564.3144396,0.00013,2]
[327045836,1715734246325,-150.0,0.00012979,2]
[327045837,1715734246335,-156.96979095,0.00012995,2]
[327045838,1715734246405,-6128.93849511,0.00012995,2]
[327045839,1715734246417,-718.325,0.00012995,2]
[327045842,1715734778089,-155.0,8.897e-05,2]
[327045843,1715734778109,-488.55926447,8.898e-05,2]
[327045844,1715734778129,-5008.94073553,8.898e-05,2]
[327045848,1715735362161,-335.70453274,8.878e-05,2]
[327045858,1715735432157,-453.51,8.877e-05,2]
[327045859,1715735432170,-277.94262863,8.877e-05,2]
[327045860,1715735432236,-482.16656564,8.877e-05,2]
[327045861,1715735432246,-2220.98098245,8.899e-05,2]
[327045862,1715735432255,-11749.11682771,8.9e-05,3]
[327045863,1715735432316,-500.0,8.9e-05,3]
[327045864,1715735432329,-406.13838012,8.9e-05,3]
[327045865,1715735432342,-414.95236416,8.9e-05,3]
[327045866,1715735432355,-562.25042201,8.9e-05,3]
[327045867,1715735432365,-155.18883555,8.986e-05,2]
[327045868,1715735432375,-6319.78,9.663e-05,2]
[327045869,1715735432386,-173.78074244,0.00010411,2]
[327045870,1715735432403,-223.37925756,0.00010411,2]
[327045871,1715735432413,-200.0,0.00011,2]
[327045872,1715735432422,-180.82,0.00011311,2]
[327045873,1715735432431,-4.59074244,0.00011368,2]
[327045874,1715735432443,-164.24925756,0.00011368,2]
[327045875,1715735432453,-196.90074244,0.0001141,2]
[327045913,1715735438642,-627.57621706,0.0001141,2]
[327045914,1715735438653,-311.75649,0.0001141,2]
[327045915,1715735438664,-1785.4465505,0.0001141,2]
[327045916,1715735438673,-250.0,0.00011463,2]
[327045917,1715735438682,-1334.57085513,0.00011465,2]
[327045918,1715735438693,-28747.64659623,0.00011465,2]
[327045919,1715735438702,-2162.2,0.00011465,2]
[327045920,1715735438711,-473.73,0.00011465,2]
[327045921,1715735438721,-21150.4,0.00011475,2]
[327045922,1715735438730,-854.07,0.00011506,2]
[327045923,1715735438740,-158.6,0.00011516,2]
[327045924,1715735438749,-250.0,0.00011568,2]
[327045925,1715735438759,-153.86,0.00011586,2]
[327045926,1715735438768,-168.06,0.00011589,2]
[327045927,1715735438777,-1000.0,0.00011742,2]
[327045928,1715735438786,-153.86,0.00011787,2]
[327045929,1715735438795,-198.55,0.00011855,2]
[327045931,1715735438805,-153.14,0.00011863,2]
[327045933,1715735438814,-2263.99656285,0.000119,2]
[327045935,1715735438823,-6319.78,0.00011927,2]
[327045937,1715735438832,-153.86,0.00011988,2]
[327045939,1715735438841,-500.0,0.00012,2]
[327045940,1715735438850,-500.0,0.00012,2]
[327045942,1715735438860,-500.0,0.00012,2]
[327045944,1715735438872,-500.0,0.00012,2]
[327045945,1715735438881,-500.0,0.00012,2]
[327045946,1715735438890,-500.0,0.00012,2]
[327045947,1715735438900,-500.0,0.00012,2]
[327045948,1715735438912,-500.0,0.00012,2]
[327045950,1715735438920,-500.0,0.00012,2]
[327045951,1715735438929,-500.0,0.00012,2]
[327045952,1715735438939,-500.0,0.00012,2]
[327045953,1715735438949,-500.0,0.00012,2]
[327045954,1715735438958,-500.0,0.00012,2]
[327045955,1715735438967,-500.0,0.00012,2]
[327045956,1715735438976,-500.0,0.00012,2]
[327045957,1715735438987,-500.0,0.00012,2]
[327045958,1715735438997,-500.0,0.00012,2]
[327045959,1715735439006,-500.0,0.00012,2]
[327045960,1715735439016,-500.0,0.00012,2]
[327045961,1715735439025,-500.0,0.00012,2]
[327045962,1715735439035,-500.0,0.00012,2]
[327045963,1715735439044,-500.0,0.00012,2]
[327045964,1715735439054,-500.0,0.00012,2]
[327045965,1715735439064,-500.0,0.00012,2]
[327045966,1715735439074,-500.0,0.00012,2]
[327045967,1715735439083,-500.0,0.00012,2]
[327045968,1715735439093,-500.0,0.00012,2]
[327045969,1715735439102,-500.0,0.00012,2]
[327045970,1715735439114,-500.0,0.00012,2]
[327045971,1715735439123,-500.0,0.00012,2]
[327045972,1715735439132,-500.0,0.00012,2]
[327045973,1715735439142,-435.0,0.00012,2]
[327045974,1715735439151,-500.0,0.00012,2]
[327045975,1715735439161,-500.0,0.00012,2]
[327045976,1715735439170,-500.0,0.00012,2]
[327045977,1715735439179,-500.0,0.00012,2]
[327045978,1715735439188,-500.0,0.00012,2]
[327045979,1715735439197,-500.0,0.00012,2]
[327045980,1715735439207,-500.0,0.00012,2]
[327045981,1715735439216,-500.0,0.00012,2]
[327045982,1715735439225,-500.0,0.00012,2]
[327045983,1715735439236,-500.0,0.00012,2]
[327045984,1715735439245,-500.0,0.00012,2]
[327045985,1715735439254,-319.09,0.00012,2]
[327045986,1715735439264,-19621.08328365,0.00012,2]
[327045987,1715735439273,-153.86,0.00012189,2]
[327045988,1715735439282,-10000.0,0.00012336,2]
[327045989,1715735439292,-692.139877,0.00012465,2]
[327045990,1715735439302,-1354.5629,0.00012497,2]
[327045991,1715735439311,-274.87,0.00012577,2]
[327045992,1715735439320,-288.0,0.00012577,2]
[327045993,1715735439329,-1047.0,0.00012577,2]
[327045994,1715735439339,-1059.0,0.00012577,2]
[327045995,1715735439348,-692.139877,0.00012621,2]
[327045996,1715735439357,-692.139877,0.00012777,2]
[327045997,1715735439368,-5000.0,0.00012869,2]
[327045998,1715735439377,-1710.86935,0.0001287,2]
[327045999,1715735439387,-500.0,0.00012896,2]
[327046000,1715735439396,-221.26340903,0.00012898,2]
[327046001,1715735439406,-2263.99656286,0.00012898,2]
[327046002,1715735439415,-1000.0,0.00012898,2]
[327046003,1715735439425,-7500.0,0.00012898,2]
[327046004,1715735439434,-221.26340902,0.00012899,2]
[327046005,1715735439444,-276.78185614,0.000129,2]
[327046006,1715735439453,-276.78185611,0.000129,2]
[327046007,1715735439463,-276.78185611,0.000129,2]
[327046008,1715735439472,-276.78185611,0.000129,2]
[327046009,1715735439482,-276.78185611,0.000129,2]
[327046010,1715735439493,-276.78185611,0.000129,2]
[327046011,1715735439504,-276.78185611,0.000129,2]
[327046012,1715735439514,-276.78185611,0.000129,2]
[327046013,1715735439524,-457.44398321,0.00012932,2]
[327046014,1715735439534,-692.139877,0.00012933,2]
[327046015,1715735439543,-20034.79553969,0.00012936,2]
[327046016,1715735439553,-150.0,0.00012979,2]
[327046017,1715735439563,-150.0,0.00012979,2]
[327046018,1715735439574,-174.996,0.00012979,2]
[327046019,1715735439584,-500.782,0.00012979,2]
[327046020,1715735439595,-766.797,0.00012979,2]
[327046021,1715735439606,-188.03404075,0.00012988,2]
[327046022,1715735439617,-155.0,0.00012996,2]
[327046023,1715735439627,-490.52144302,0.00012996,2]
[327046024,1715735439637,-4122.127644,0.00012996,2]
[327046025,1715735439647,-7695.3614602,0.00012996,2]
[327046026,1715735439656,-16434.0187899,0.00012996,2]
[327046027,1715735439666,-1143.7004603,0.00012996,2]
[327046028,1715735439675,-300.0,0.00012996,2]
[327046029,1715735439684,-500.0,0.00012997,2]
[327046030,1715735439693,-500.0,0.00012997,2]
[327046031,1715735439703,-500.0,0.00012997,2]
[327046032,1715735439713,-580.26576283,0.00012997,2]
[327046033,1715735439723,-500.0,0.00012997,2]
[327046034,1715735439732,-500.0,0.00012997,2]
[327046035,1715735439742,-500.0,0.00012997,2]
[327046036,1715735439752,-500.0,0.00012997,2]
[327046037,1715735439761,-500.0,0.00012997,2]
[327046038,1715735439771,-500.0,0.00012997,2]
[327046039,1715735439780,-500.0,0.00012997,2]
[327046040,1715735439790,-500.0,0.00012997,2]
[327046041,1715735439800,-500.0,0.00012997,2]
[327046042,1715735439810,-500.0,0.00012997,2]
[327046043,1715735439819,-500.0,0.00012997,2]
[327046044,1715735439829,-500.0,0.00012997,2]
[327046045,1715735439839,-500.0,0.00012997,2]
[327046046,1715735439848,-500.0,0.00012997,2]
[327046047,1715735439858,-500.0,0.00012997,2]
[327046048,1715735439869,-500.0,0.00012997,2]
[327046049,1715735439878,-500.0,0.00012997,2]
[327046050,1715735439888,-261.63535409,0.00012997,2]
[327046051,1715735439897,-4739.38262032,0.00012998,2]
[327046052,1715735439908,-595.0,0.00012998,2]
[327046053,1715735439919,-155.0,0.00012998,2]
[327046054,1715735439927,-300.21731972,0.00012998,2]
[327046055,1715735439937,-873.81182588,0.00012998,2]
[327046056,1715735439946,-155.0,0.00012998,2]
[327046057,1715735439957,-248.35796841,0.00012998,2]
[327046058,1715735439966,-161.80076929,0.00012998,2]
[327046059,1715735439975,-275.56606053,0.00012998,2]
[327046060,1715735439985,-403.90185984,0.00012998,2]
[327046061,1715735439994,-235.19465005,0.00012998,2]
[327046062,1715735440004,-4411.09951454,0.00012998,2]
[327046063,1715735440013,-3083.76487824,0.00012998,2]
[327046064,1715735440022,-155.0,0.00012998,2]
[327046065,1715735440031,-3082.73013439,0.00012998,2]
[327046066,1715735440041,-155.0,0.00012998,2]
[327046067,1715735440050,-1011.42604063,0.00012998,2]
[327046068,1715735440060,-217.06896693,0.00012998,2]
[327046069,1715735440070,-248.485701,0.00012998,2]
[327046070,1715735440079,-12362.636667,0.00012998,2]
[327046071,1715735440089,-208.10277012,0.00012998,2]
[327046072,1715735440099,-514372.29872849,0.00012998,2]
[327046073,1715735440113,-72232.05546297,0.00012998,2]
[327046075,1715735440134,-305.7648669,0.00012998,2]
[327046076,1715735440344,-1121.2213578,0.00012337,2]
[327046077,1715735440508,-632.96,0.00012337,2]
[327046078,1715735440589,-8140.33135653,0.00012337,2]
[327046079,1715735440601,-105.48728567,0.00012337,2]
[327046080,1715735440611,-6627.53775816,0.00012998,2]
[327046082,1715735440804,-1650.21197094,0.00012998,2]
[327046083,1715735440817,-257.59616578,0.00012998,2]
[327046095,1715735443410,-182.85,0.00010959,2]
[327046096,1715735443421,-457.44398321,0.000129,2]
[327046097,1715735443430,-2000.63100116,0.00012998,2]
[327046098,1715735443467,-503.99410468,0.00012998,2]
[327046099,1715735443479,-344.10978337,0.00012998,2]
[327046100,1715735443498,-925.50594997,0.00012998,2]
[327046101,1715735443511,-427.149998,0.00012998,2]
[327046102,1715735443522,-1502.81579274,0.00012998,2]
[327046103,1715735443533,-1285.91782851,0.00012998,2]
[327046104,1715735443545,-371.53014874,0.00012998,2]
[327046105,1715735443587,-2350.30716957,0.00012998,2]
[327046117,1715735446171,-531.0,0.00012998,2]
[327046118,1715735446182,-1756.15044994,0.00012998,2]
[327046119,1715735446194,-873.76431563,0.00012998,2]
[327046120,1715735446207,-30986.14889351,0.00012998,2]
[327046121,1715735446219,-1165.20732463,0.00012998,2]
[327046122,1715735446231,-2089.86470127,0.00012998,2]
[327046123,1715735446250,-5007.22143772,0.00012998,2]
[327046124,1715735446262,-6128.1,0.00012998,2]
[327046125,1715735446273,-581.0,0.00012998,2]
[327046126,1715735446460,-14856.69095878,0.00012998,2]
[327046127,1715735446471,-6293.32144232,0.00012998,2]
[327046128,1715735446484,-15592.99507342,0.00012998,2]
[327046129,1715735446500,-10626.67261,0.00012998,2]
[327046130,1715735446512,-15244.77312,0.00012998,2]
[327046143,1715736632530,-5687.8,9.593e-05,2]
[327046145,1715736632540,-156.41311883,0.00010311,2]
[327046146,1715736632550,-311.73,0.00010411,2]
[327046147,1715736632559,-200.0,0.00011,2]
[327046148,1715736632568,-150.0,0.00011309,2]
[327046149,1715736632578,-8271.15614475,0.0001131,2]
[327046150,1715736632830,-431.18512968,0.0001131,2]
[327046151,1715736632841,-1272.24,0.0001131,2]
[327046152,1715736632852,-259.02589697,0.0001131,2]
[327046153,1715736632864,-2049.42770371,0.0001131,2]
[327046154,1715736632875,-1554.39704103,0.0001131,2]
[327046161,1715736638806,-2459.25538386,0.0001131,2]
[327046162,1715736638816,-1000.0,0.00011461,2]
[327046163,1715736638826,-9096.99047558,0.00011468,2]
[327046164,1715736638837,-7812.08952442,0.00011468,2]
[327046166,1715736638847,-198.55,0.00011498,2]
[327046168,1715736638856,-633.68,0.00011556,2]
[327046169,1715736638865,-250.0,0.00011596,2]
[327046170,1715736638874,-156.41311883,0.00011604,2]
[327046171,1715736638884,-168.06,0.00011614,2]
[327046172,1715736638893,-2756.14,0.00011615,2]
[327046173,1715736638902,-225.38,0.00011631,2]
[327046174,1715736638911,-167.78,0.00011671,2]
[327046175,1715736638920,-1045.59867009,0.00011689,2]
[327046176,1715736638929,-1045.5986701,0.00011689,2]
[327046177,1715736638938,-5687.8,0.00011857,2]
[327046178,1715736638947,-19621.08328365,0.00012,2]
[327046179,1715736638957,-800.0,0.00012,4]
[327046180,1715736638966,-1700.0,0.000121,4]
[327046181,1715736638975,-2600.0,0.000122,4]
[327046182,1715736638984,-150.0,0.000123,2]
[327046183,1715736638993,-3500.0,0.000123,4]
[327046184,1715736639003,-1373.84592932,0.00012337,2]
[327046185,1715736639012,-798.28809431,0.00012346,2]
[327046186,1715736639022,-2024.62916382,0.000124,4]
[327046187,1715736639036,-2375.37083618,0.000124,4]
[327046188,1715736639045,-845.607182,0.00012465,2]
[327046189,1715736639055,-158.613838,0.00012465,2]
[327046190,1715736639065,-800.0,0.000125,4]
[327046191,1715736639074,-800.0,0.000126,4]
[327046192,1715736639083,-845.607182,0.00012621,2]
[327046193,1715736639093,-800.0,0.000127,4]
[327046194,1715736639103,-845.607182,0.00012777,2]
[327046195,1715736639114,-158.613838,0.00012777,2]
[327046196,1715736639125,-1003.0,0.000128,2]
[327046197,1715736639135,-800.0,0.000128,4]
[327046198,1715736639146,-2226.0653,0.00012836,2]
[327046199,1715736639156,-7407.3488,0.00012836,2]
[327046200,1715736639167,-163.47089374,0.00012869,2]
[327046201,1715736639178,-1000.0,0.00012894,2]
[327046202,1715736639189,-408.75571186,0.00012896,2]
[327046203,1715736639202,-591.24428814,0.00012896,2]
[327046204,1715736639212,-322.32730327,0.00012897,2]
[327046205,1715736639225,-300.55989673,0.00012897,2]
[327046206,1715736639235,-156.41311883,0.00012897,2]
[327046207,1715736639245,-737.51675808,0.00012898,2]
[327046208,1715736639261,-1305.51022636,0.00012898,2]
[327046209,1715736639275,-3013.6632838,0.00012898,2]
[327046210,1715736639288,-3094.32703647,0.00012898,2]
[327046211,1715736639302,-86.49945337,0.00012898,2]
[327046212,1715736639311,-326.12204379,0.000129,4]
[327046213,1715736639337,-1373.87795621,0.000129,4]
[327046214,1715736639347,-253.3221512,0.000129,2]
[327046215,1715736639358,-457.44398321,0.00012932,2]
[327046216,1715736639368,-845.607182,0.00012933,2]
[327046217,1715736639378,-1047.0,0.00012989,2]
[327046218,1715736639388,-1062.704,0.00012989,2]
[327046219,1715736639399,-1271.28995696,0.00012996,2]
[327046220,1715736639410,-335.70453274,0.00012996,2]
[327046221,1715736639420,-500.0,0.00012996,2]
[327046222,1715736639431,-500.0,0.00012996,2]
[327046223,1715736639442,-500.0,0.00012996,2]
[327046224,1715736639452,-500.0,0.00012996,2]
[327046226,1715736639463,-150.0,0.00012996,2]
[327046228,1715736639473,-500.0,0.00012996,2]
[327046230,1715736639484,-500.0,0.00012996,2]
[327046232,1715736639494,-500.0,0.00012996,2]
[327046235,1715736639503,-500.0,0.00012996,2]
[327046238,1715736639513,-500.0,0.00012996,2]
[327046241,1715736639523,-500.0,0.00012996,2]
[327046244,1715736639533,-408.72320121,0.00012996,2]
[327046248,1715736639547,-91.27679879,0.00012996,2]
[327046251,1715736639558,-500.0,0.00012996,2]
[327046253,1715736639568,-500.0,0.00012996,2]
[327046255,1715736639578,-258.72320121,0.00012996,2]
[327046284,1715736639871,-241.27679879,0.00012996,2]
[327046286,1715736639880,-500.0,0.00012996,2]
[327046288,1715736639891,-500.0,0.00012996,2]
[327046290,1715736639901,-500.0,0.00012996,2]
[327046292,1715736639912,-5296.9738051,0.00012996,2]
[327046294,1715736639922,-500.0,0.00012996,2]
[327046296,1715736639933,-500.0,0.00012996,2]
[327046298,1715736639943,-500.0,0.00012996,2]
[327046300,1715736639953,-500.0,0.00012996,2]
[327046302,1715736639963,-493.65064711,0.00012996,2]
[327046304,1715736639974,-722.76,0.00012996,2]
[327046306,1715736639984,-500.0,0.00012996,2]
[327046308,1715736639995,-500.0,0.00012996,2]
[327046310,1715736640005,-519.99956833,0.00012996,2]
[327046311,1715736640015,-631.54284653,0.00012996,2]
[327046312,1715736640026,-273.6562654,0.00012996,2]
[327046313,1715736640036,-500.0,0.00012996,2]
[327046314,1715736640047,-520.14518888,0.00012996,2]
[327046315,1715736640057,-500.0,0.00012996,2]
[327046316,1715736640067,-427.7643319,0.00012996,2]
[327046317,1715736640079,-546.84,0.00012996,2]
[327046318,1715736640089,-736.29,0.00012996,2]
[327046319,1715736640100,-512.16562245,0.00012996,2]
[327046320,1715736640110,-500.0,0.00012996,2]
[327046321,1715736640121,-500.0,0.00012996,2]
[327046322,1715736640132,-500.0,0.00012996,2]
[327046323,1715736640142,-500.0,0.00012996,2]
[327046324,1715736640152,-203.7915615,0.00012996,2]
[327046325,1715736640164,-500.0,0.00012996,2]
[327046326,1715736640174,-500.0,0.00012996,2]
[327046327,1715736640184,-500.0,0.00012996,2]
[327046328,1715736640195,-296.66703943,0.00012996,2]
[327046329,1715736640215,-500.0,0.00012996,2]
[327046330,1715736640226,-500.0,0.00012996,2]
[327046331,1715736640236,-500.0,0.00012996,2]
[327046332,1715736640247,-209.3631346,0.00012996,2]
[327046333,1715736640259,-500.0,0.00012996,2]
[327046334,1715736640270,-500.0,0.00012996,2]
[327046335,1715736640280,-578.08,0.00012996,2]
[327046336,1715736640290,-526.43243769,0.00012996,2]
[327046337,1715736640300,-500.0,0.00012996,2]
[327046338,1715736640309,-500.0,0.00012996,2]
[327046339,1715736640319,-500.0,0.00012996,2]
[327046340,1715736640329,-500.0,0.00012996,2]
[327046341,1715736640340,-1899.4,0.00012996,2]
[327046342,1715736640350,-500.0,0.00012996,2]
[327046343,1715736640359,-500.0,0.00012996,2]
[327046344,1715736640369,-605.03,0.00012996,2]
[327046345,1715736640379,-500.0,0.00012996,2]
[327046346,1715736640389,-500.0,0.00012996,2]
[327046347,1715736640398,-500.0,0.00012996,2]
[327046348,1715736640409,-509.62515232,0.00012996,2]
[327046349,1715736640418,-500.0,0.00012996,2]
[327046350,1715736640428,-315.61203434,0.00012996,2]
[327046351,1715736640688,-500.0,0.00012996,2]
[327046352,1715736640698,-500.0,0.00012996,2]
[327046353,1715736640708,-257.65118016,0.00012996,2]
[327046354,1715736640720,-500.0,0.00012996,2]
[327046355,1715736640729,-175.98161263,0.00012996,2]
[327046356,1715736640739,-163.60398738,0.00012996,2]
[327046357,1715736640748,-1212.7569798,0.00012997,2]
[327046358,1715736640758,-1882.64335644,0.00012997,2]
[327046359,1715736640768,-5000.0,0.00012997,2]
[327046360,1715736640777,-655.94713072,0.00012997,2]
[327046362,1715736640787,-500.0,0.00012997,2]
[327046364,1715736640796,-643.34507051,0.00012997,2]
[327046365,1715736640806,-500.0,0.00012997,2]
[327046366,1715736640815,-500.0,0.00012997,2]
[327046367,1715736640825,-532.56858193,0.00012997,2]
[327046369,1715736640835,-512.96840406,0.00012997,2]
[327046371,1715736640845,-500.0,0.00012997,2]
[327046373,1715736640854,-536.33122646,0.00012997,2]
[327046375,1715736640865,-500.0,0.00012997,2]
[327046376,1715736640874,-517.31461335,0.00012997,2]
[327046377,1715736640884,-500.0,0.00012997,2]
[327046378,1715736640893,-523.89931663,0.00012997,2]
[327046379,1715736640903,-500.0,0.00012997,2]
[327046380,1715736640913,-643.74,0.00012997,2]
[327046381,1715736640922,-521.5920714,0.00012997,2]
[327046382,1715736640932,-523.22590805,0.00012997,2]
[327046383,1715736640942,-500.0,0.00012997,2]
[327046384,1715736640952,-500.0,0.00012997,2]
[327046385,1715736640961,-500.0,0.00012997,2]
[327046386,1715736640971,-374.313402,0.00012997,2]
[327046387,1715736640980,-528.49040787,0.00012997,2]
[327046388,1715736640990,-523.12645509,0.00012997,2]
[327046389,1715736641000,-500.0,0.00012997,2]
[327046390,1715736641010,-563.81533351,0.00012997,2]
[327046391,1715736641020,-500.0,0.00012997,2]